lending/lending_fUSD_20240809
["ID","MTS","AMOUNT","RATE_DAILY","PERIOD"]
[334539496,1723177832152,-204.5,0.00013,2]
[334539497,1723177832161,-159.69645227,0.00013233,2]
[334539498,1723177832171,-764.78128115,0.00013303,2]
[334539499,1723177832184,-600.0,0.00015,2]
[334539500,1723177832194,-650.0,0.00017,2]
[334539501,1723177832203,-2907.0037697,0.00017807,2]
[334539502,1723177832212,-300.0,0.0001808,2]
[334539503,1723177832221,-438.81068454,0.00019599,2]
[334539504,1723177832231,-306.72174365,0.00019725,2]
[334539505,1723177832240,-420.0,0.00019726,2]
[334539506,1723177832249,-1002.93,0.00019796,2]
[334539507,1723177832259,-394.9538299,0.00019899,2]
[334539508,1723177832269,-3001.91496978,0.0002,2]
[334539509,1723177832278,-414.72232741,0.00020191,2]
[334539510,1723177832287,-1143.0,0.000212,4]
[334539511,1723177832297,-3997.81029164,0.00021375,2]
[334539512,1723177832309,-19902.18970836,0.00021375,2]
[334539513,1723177832320,-173.6,0.00021418,2]
[334539514,1723177832331,-800.0,0.00021443,2]
[334539515,1723177832341,-300.0,0.00021521,2]
[334539516,1723177832351,-1072.49492027,0.00021535,2]
[334539517,1723177832368,-903.92013879,0.00021535,2]
[334539518,1723177832380,-2217.65494094,0.00021535,2]
[334539519,1723177832390,-159.48,0.00021696,2]
[334539520,1723177832399,-250.0,0.00021767,2]
[334539521,1723177832409,-150.0,0.00021899,2]
[334539522,1723177832419,-1002.93,0.00022059,2]
[334539523,1723177832429,-250.0,0.00022073,2]
[334539524,1723177832441,-172.8,0.00022659,2]
[334539525,1723177832450,-200.0,0.00022765,2]
[334539526,1723177832460,-530.9531837,0.00023451,2]
[334539527,1723177832469,-370.496253,0.00023451,2]
[334539528,1723177832479,-259.8033,0.00023673,2]
[334539529,1723177832490,-202.799,0.00023673,2]
[334539530,1723177832500,-32167.8,0.00023773,2]
[334539531,1723177832509,-670.1582856,0.00023873,2]
[334539532,1723177832518,-180.0,0.00023882,2]
[334539533,1723177832527,-2260.36970886,0.00024,2]
[334539534,1723177832536,-15441.7217,0.00024074,2]
[334539535,1723177832545,-17008.7328,0.00024074,2]
[334539536,1723177832555,-174.86320188,0.00024098,2]
[334539537,1723177832567,-800.0,0.00024123,2]
[334539538,1723177832576,-3000.0,0.0002415,2]
[334539539,1723177832585,-823.69,0.00024164,3]
[334539540,1723177832594,-19755.85,0.00024174,2]
[334539541,1723177832603,-6024.2715,0.0002419,2]
[334539542,1723177832613,-1000.0,0.00024198,2]
[334539543,1723177832622,-2500.0,0.00024198,2]
[334539544,1723177832631,-706.6910894,0.00024289,4]
[334539546,1723177832641,-150.67,0.00024289,2]
[334539548,1723177832650,-421.35206621,0.0002429,4]
[334539550,1723177832659,-551.0,0.0002429,2]
[334539552,1723177832668,-1151.0,0.0002429,2]
[334539554,1723177832677,-5131.0,0.0002429,2]
[334539556,1723177832688,-1619.3683389,0.0002429,2]
[334539558,1723177832700,-1272.6926611,0.0002429,2]
[334539560,1723177832709,-5953.49559298,0.0002429,2]
[334539562,1723177832720,-2300.0,0.0002429,2]
[334539564,1723177832731,-1322.1285796,0.0002429,2]
[334539567,1723177838263,-438.81068454,0.00019451,2]
[334539568,1723177838273,-530.9531837,0.00020999,2]
[334539569,1723177838283,-158.0,0.0002425,2]
[334539570,1723177838292,-6268.05882742,0.0002429,2]
[334539571,1723177838301,-976.946,0.0002429,2]
[334539572,1723177838310,-1522.814,0.0002429,2]
[334539573,1723177838319,-304.446,0.0002429,2]
[334539574,1723177838329,-446.0,0.0002429,2]
[334539575,1723177838338,-500.0,0.00024298,2]
[334539576,1723177838347,-500.0,0.00024298,2]
[334539577,1723177838356,-500.0,0.00024298,2]
[334539578,1723177838366,-500.0,0.00024298,2]
[334539579,1723177838375,-500.0,0.00024298,2]
[334539580,1723177838384,-500.0,0.00024298,2]
[334539581,1723177838394,-500.0,0.00024298,2]
[334539582,1723177838403,-500.0,0.00024298,2]
[334539583,1723177838412,-643.12800264,0.00024298,2]
[334539584,1723177838421,-500.0,0.00024298,2]
[334539585,1723177838430,-500.0,0.00024298,2]
[334539586,1723177838440,-500.0,0.00024298,2]
[334539587,1723177838453,-500.0,0.00024298,2]
[334539588,1723177838462,-500.0,0.00024298,2]
[334539589,1723177838471,-500.0,0.00024298,2]
[334539590,1723177838481,-500.0,0.00024298,2]
[334539591,1723177838491,-500.0,0.00024298,2]
[334539592,1723177838500,-636.89930637,0.00024298,2]
[334539593,1723177838510,-500.0,0.00024298,2]
[334539594,1723177838519,-500.0,0.00024298,2]
[334539595,1723177838529,-500.0,0.00024298,2]
[334539596,1723177838538,-500.0,0.00024298,2]
[334539597,1723177838548,-500.0,0.00024298,2]
[334539598,1723177838557,-500.0,0.00024298,2]
[334539599,1723177838567,-500.0,0.00024298,2]
[334539600,1723177838579,-500.0,0.00024298,2]
[334539601,1723177838589,-479.45693436,0.00024298,2]
[334539602,1723177838598,-500.0,0.00024298,2]
[334539603,1723177838607,-500.0,0.00024298,2]
[334539604,1723177838617,-352.89578321,0.00024298,2]
[334539605,1723177838626,-500.0,0.00024298,2]
[334539606,1723177838636,-500.0,0.00024298,2]
[334539607,1723177838646,-500.0,0.00024298,2]
[334539608,1723177838656,-500.0,0.00024298,2]
[334539609,1723177838666,-500.0,0.00024298,2]
[334539610,1723177838675,-500.0,0.00024298,2]
[334539611,1723177838685,-322.97043595,0.00024298,2]
[334539612,1723177838695,-500.0,0.00024298,2]
[334539613,1723177838703,-500.0,0.00024298,5]
[334539614,1723177838712,-500.0,0.00024298,5]
[334539615,1723177838721,-553.33403561,0.00024298,5]
[334539616,1723177838731,-500.0,0.00024298,5]
[334539617,1723177838740,-500.0,0.00024298,5]
[334539618,1723177838749,-500.0,0.00024298,5]
[334539619,1723177838759,-500.0,0.00024298,5]
[334539620,1723177838768,-500.0,0.00024298,5]
[334539621,1723177838777,-545.22,0.00024298,5]
[334539622,1723177838787,-894.29,0.00024298,5]
[334539623,1723177838796,-894.29,0.00024298,5]
[334539624,1723177838805,-955.86,0.00024298,5]
[334539625,1723177838814,-674.14440048,0.00024298,5]
[334539628,1723177838861,-303.95167448,0.00024298,5]
[334539630,1723177838876,-308.66866659,0.00024298,5]
[334539631,1723177838891,-319.22525845,0.00024298,5]
[334539632,1723177838900,-955.86,0.00024298,5]
[334539633,1723177838910,-1605.99,0.00024298,5]
[334539634,1723177838919,-1910.14,0.00024298,5]
[334539635,1723177838928,-1910.14,0.00024298,5]
[334539636,1723177838938,-1345.12816704,0.00024298,5]
[334539637,1723177838949,-1623.82183296,0.00024298,5]
[334539638,1723177838958,-2968.95,0.00024298,5]
[334539639,1723177838967,-555.82,0.00024298,5]
[334539640,1723177838977,-500.0,0.00024298,5]
[334539641,1723177838986,-500.0,0.00024298,5]
[334539642,1723177839163,-500.0,0.00024298,5]
[334539643,1723177839173,-500.0,0.00024298,5]
[334539644,1723177839182,-500.0,0.00024298,5]
[334539645,1723177839193,-638.02629874,0.00024298,5]
[334539646,1723177839202,-500.0,0.00024298,5]
[334539647,1723177839212,-500.0,0.00024298,5]
[334539648,1723177839221,-500.0,0.00024298,5]
[334539649,1723177839230,-500.0,0.00024298,5]
[334539650,1723177839239,-174.86320184,0.00024299,2]
[334539651,1723177839249,-500.0,0.00024299,2]
[334539652,1723177839258,-15482.2455,0.00024299,2]
[334539653,1723177839267,-1000.0,0.00024299,2]
[334539654,1723177839276,-634.41083896,0.00024299,2]
[334539655,1723177839291,-28009.35838914,0.00024299,2]
[334539656,1723177839303,-215728.4740719,0.00024299,2]
[334539658,1723177839312,-4921.075,0.00024299,2]
[334539660,1723177839322,-100000.0,0.00024299,2]
[334539662,1723177839331,-16308.38401955,0.000243,2]
[334539664,1723177839340,-6658.409096,0.000243,2]
[334539666,1723177839349,-473.56649042,0.000243,14]
[334539668,1723177839358,-1002.93,0.00024323,2]
[334539670,1723177839368,-150.67,0.00024388,2]
[334539672,1723177839377,-2228.12442632,0.00024398,2]
[334539674,1723177839386,-500.0,0.00024398,5]
[334539676,1723177839395,-500.0,0.00024398,5]
[334539678,1723177839404,-500.0,0.00024398,5]
[334539680,1723177839413,-1559.7,0.00024398,5]
[334539681,1723177839422,-500.0,0.00024398,5]
[334539683,1723177839431,-500.0,0.00024398,5]
[334539685,1723177839441,-500.0,0.00024398,2]
[334539687,1723177839451,-1059.6,0.00024398,5]
[334539689,1723177839460,-872.4,0.00024398,5]
[334539691,1723177839469,-500.0,0.00024398,5]
[334539693,1723177839478,-500.0,0.00024398,5]
[334539695,1723177839487,-500.0,0.00024398,5]
[334539697,1723177839497,-500.0,0.00024398,5]
[334539699,1723177839507,-500.0,0.00024398,5]
[334539701,1723177839515,-500.0,0.00024398,5]
[334539703,1723177839525,-658.5,0.00024398,5]
[334539705,1723177839534,-544.42,0.00024398,5]
[334539707,1723177839545,-892.82,0.00024398,5]
[334539708,1723177839554,-500.0,0.00024398,5]
[334539709,1723177839564,-494.9,0.00024398,5]
[334539710,1723177839575,-500.0,0.00024398,5]
[334539711,1723177839584,-2000.0,0.00024399,2]
[334539712,1723177839594,-200.0,0.00024399,2]
[334539713,1723177839602,-169.35858079,0.00024399,2]
[334539714,1723177839612,-162.97553612,0.000244,2]
[334539715,1723177839622,-343.987401,0.0002448,5]
[334539716,1723177839631,-343.987401,0.00024487,5]
[334539717,1723177839641,-343.987401,0.00024487,5]
[334539718,1723177839652,-343.987401,0.00024488,5]
[334539719,1723177839661,-343.987401,0.00024488,5]
[334539720,1723177839671,-343.987401,0.00024488,5]
[334539721,1723177839680,-421.35206621,0.00024488,4]
[334539722,1723177839689,-2528.11239726,0.00024489,4]
[334539724,1723177839700,-150.67,0.00024489,2]
[334539726,1723177839709,-150.67,0.00024489,2]
[334539728,1723177839718,-343.987401,0.00024489,5]
[334539730,1723177839728,-343.987401,0.00024489,5]
[334539732,1723177839737,-343.987401,0.00024489,5]
[334539734,1723177839746,-343.987401,0.00024489,5]
[334539736,1723177839755,-343.987401,0.00024489,5]
[334539738,1723177839764,-343.987401,0.00024489,5]
[334539740,1723177839774,-1264.05619863,0.0002449,4]
[334539742,1723177839783,-500.0,0.00024493,5]
[334539744,1723177839792,-500.0,0.00024493,5]
[334539746,1723177839804,-343.987401,0.00024496,5]
[334539748,1723177839813,-159.34593561,0.00024496,2]
[334539750,1723177839823,-343.987401,0.00024497,5]
[334539752,1723177839832,-343.987401,0.00024497,5]
[334539754,1723177839841,-500.0,0.00024497,5]
[334539756,1723177839852,-1274.76748488,0.00024497,2]
[334539758,1723177839861,-150.01,0.00024498,2]
[334539760,1723177839871,-2953.9477494,0.00024498,2]
[334539762,1723177839881,-343.987401,0.00024498,5]
[334539764,1723177839891,-343.987401,0.00024498,5]
[334539766,1723177839900,-343.987401,0.00024498,5]
[334539768,1723177839910,-343.987401,0.00024498,5]
[334539770,1723177839919,-343.987401,0.00024498,5]
[334539772,1723177839928,-343.987401,0.00024498,5]
[334539774,1723177839938,-343.987401,0.00024498,5]
[334539776,1723177839948,-343.987401,0.00024498,5]
[334539777,1723177839958,-343.987401,0.00024498,5]
[334539779,1723177839967,-343.987401,0.00024498,5]
[334539781,1723177839976,-343.987401,0.00024498,5]
[334539783,1723177839985,-503.01001032,0.00024498,5]
[334539785,1723177839995,-500.0,0.00024498,5]
[334539787,1723177840005,-500.0,0.00024498,5]
[334539789,1723177840014,-1559.7,0.00024498,5]
[334539791,1723177840024,-1559.7,0.00024498,5]
[334539793,1723177840033,-500.0,0.00024498,5]
[334539795,1723177840043,-500.0,0.00024498,5]
[334539797,1723177840052,-500.0,0.00024498,5]
[334539799,1723177840062,-500.0,0.00024498,5]
[334539801,1723177840072,-500.0,0.00024498,2]
[334539803,1723177840081,-500.0,0.00024498,2]
[334539806,1723177840090,-1059.6,0.00024498,5]
[334539809,1723177840101,-1059.6,0.00024498,5]
[334539812,1723177840111,-872.4,0.00024498,5]
[334539814,1723177840120,-872.4,0.00024498,5]
[334539816,1723177840129,-500.0,0.00024498,5]
[334539818,1723177840140,-500.0,0.00024498,5]
[334539820,1723177840151,-500.0,0.00024498,5]
[334539822,1723177840160,-581.34672148,0.00024498,5]
[334539824,1723177840171,-500.0,0.00024498,5]
[334539826,1723177840180,-500.0,0.00024498,5]
[334539828,1723177840190,-500.0,0.00024498,5]
[334539829,1723177840199,-500.0,0.00024498,5]
[334539830,1723177840210,-500.0,0.00024498,5]
[334539831,1723177840220,-500.0,0.00024498,5]
[334539832,1723177840230,-500.0,0.00024498,5]
[334539833,1723177840239,-500.0,0.00024498,5]
[334539834,1723177840249,-658.5,0.00024498,5]
[334539835,1723177840258,-658.5,0.00024498,5]
[334539836,1723177840267,-544.42,0.00024498,5]
[334539837,1723177840277,-544.42,0.00024498,5]
[334539838,1723177840287,-892.82,0.00024498,5]
[334539839,1723177840296,-892.82,0.00024498,5]
[334539840,1723177840306,-500.0,0.00024498,5]
[334539841,1723177840316,-500.0,0.00024498,5]
[334539842,1723177840326,-500.0,0.00024498,5]
[334539843,1723177840336,-500.0,0.00024498,5]
[334539844,1723177840346,-500.0,0.00024498,5]
[334539845,1723177840355,-500.0,0.00024498,5]
[334539846,1723177840364,-509.86388587,0.00024498,5]
[334539847,1723177840373,-500.0,0.00024498,5]
[334539848,1723177840382,-500.0,0.00024498,5]
[334539849,1723177840392,-894.29,0.00024498,5]
[334539850,1723177840401,-894.29,0.00024498,5]
[334539851,1723177840411,-955.86,0.00024498,5]
[334539852,1723177840420,-1605.99,0.00024498,5]
[334539853,1723177840430,-955.86,0.00024498,5]
[334539854,1723177840440,-1605.99,0.00024498,5]
[334539855,1723177840449,-1910.14,0.00024498,5]
[334539856,1723177840459,-1910.14,0.00024498,5]
[334539857,1723177840468,-2968.95,0.00024498,5]
[334539858,1723177840478,-2968.95,0.00024498,5]
[334539859,1723177840488,-500.0,0.00024498,5]
[334539860,1723177840497,-500.0,0.00024498,5]
[334539861,1723177840507,-500.0,0.00024498,5]
[334539862,1723177840516,-500.0,0.00024498,5]
[334539863,1723177840525,-500.0,0.00024498,5]
[334539864,1723177840536,-500.0,0.00024498,5]
[334539865,1723177840545,-500.0,0.00024498,5]
[334539866,1723177840554,-500.0,0.00024498,5]
[334539867,1723177840564,-1345.0,0.00024499,2]
[334539868,1723177840576,-343.987401,0.00024499,5]
[334539869,1723177840585,-343.987401,0.00024499,5]
[334539870,1723177840595,-343.987401,0.00024499,5]
[334539871,1723177840604,-343.987401,0.00024499,5]
[334539872,1723177840614,-343.987401,0.00024499,5]
[334539873,1723177840624,-343.987401,0.00024499,5]
[334539874,1723177840633,-343.987401,0.00024499,5]
[334539875,1723177840643,-343.987401,0.00024499,5]
[334539876,1723177840653,-343.987401,0.00024499,5]
[334539877,1723177840662,-343.987401,0.00024499,5]
[334539878,1723177840672,-343.987401,0.00024499,5]
[334539879,1723177840681,-343.987401,0.00024499,5]
[334539880,1723177840692,-343.987401,0.00024499,5]
[334539881,1723177840701,-343.987401,0.00024499,5]
[334539882,1723177840712,-343.987401,0.00024499,5]
[334539883,1723177840722,-343.987401,0.00024499,5]
[334539884,1723177840731,-343.987401,0.00024499,5]
[334539885,1723177840740,-343.987401,0.00024499,5]
[334539886,1723177840749,-343.987401,0.00024499,5]
[334539887,1723177840759,-343.987401,0.00024499,5]
[334539888,1723177840768,-343.987401,0.00024499,5]
[334539889,1723177840778,-343.987401,0.00024499,5]
[334539890,1723177840788,-343.987401,0.00024499,5]
[334539891,1723177840798,-343.987401,0.00024499,5]
[334539892,1723177840807,-500.0,0.00024499,5]
[334539893,1723177840816,-602.48832988,0.00024499,5]
[334539894,1723177840826,-1559.7,0.00024499,5]
[334539895,1723177840835,-1559.7,0.00024499,5]
[334539896,1723177840845,-1559.7,0.00024499,5]
[334539897,1723177840855,-1559.7,0.00024499,5]
[334539898,1723177840865,-1559.7,0.00024499,5]
[334539899,1723177840874,-1559.7,0.00024499,5]
[334539900,1723177840884,-1559.7,0.00024499,5]
[334539901,1723177840894,-1559.7,0.00024499,5]
[334539902,1723177840904,-1559.7,0.00024499,5]
[334539903,1723177840913,-1559.7,0.00024499,5]
[334539904,1723177840923,-1559.7,0.00024499,5]
[334539905,1723177840933,-1559.7,0.00024499,5]
[334539906,1723177840944,-1559.7,0.00024499,5]
[334539907,1723177840953,-1559.7,0.00024499,5]
[334539908,1723177840963,-1559.7,0.00024499,5]
[334539909,1723177840972,-1559.7,0.00024499,5]
[334539910,1723177840981,-1559.7,0.00024499,5]
[334539911,1723177840990,-1559.7,0.00024499,5]
[334539912,1723177840999,-1559.7,0.00024499,5]
[334539913,1723177841008,-1559.7,0.00024499,5]
[334539914,1723177841017,-1559.70679097,0.00024499,5]
[334539915,1723177841028,-500.0,0.00024499,5]
[334539916,1723177841040,-500.0,0.00024499,5]
[334539917,1723177841051,-500.0,0.00024499,5]
[334539918,1723177841062,-500.0,0.00024499,5]
[334539919,1723177841074,-500.0,0.00024499,5]
[334539920,1723177841085,-500.0,0.00024499,5]
[334539921,1723177841096,-500.0,0.00024499,5]
[334539922,1723177841107,-500.0,0.00024499,5]
[334539923,1723177841118,-500.0,0.00024499,5]
[334539924,1723177841128,-500.0,0.00024499,5]
[334539925,1723177841138,-500.0,0.00024499,5]
[334539926,1723177841150,-500.0,0.00024499,5]
[334539927,1723177841161,-500.0,0.00024499,5]
[334539928,1723177841171,-500.0,0.00024499,5]
[334539929,1723177841182,-161.00385025,0.00024499,5]
[334539930,1723177841193,-500.0,0.00024499,5]
[334539931,1723177841204,-500.0,0.00024499,5]
[334539932,1723177841215,-500.0,0.00024499,5]
[334539933,1723177841225,-500.0,0.00024499,5]
[334539934,1723177841236,-500.0,0.00024499,5]
[334539935,1723177841247,-500.0,0.00024499,2]
[334539936,1723177841258,-500.0,0.00024499,5]
[334539937,1723177841268,-500.0,0.00024499,2]
[334539938,1723177841279,-500.0,0.00024499,5]
[334539939,1723177841291,-597.57471046,0.00024499,2]
[334539940,1723177841302,-500.0,0.00024499,5]
[334539941,1723177841313,-500.0,0.00024499,5]
[334539942,1723177841325,-500.0,0.00024499,5]
[334539943,1723177841335,-500.0,0.00024499,5]
[334539944,1723177841345,-500.0,0.00024499,5]
[334539945,1723177841355,-500.0,0.00024499,5]
[334539946,1723177841366,-500.0,0.00024499,5]
[334539947,1723177841377,-500.0,0.00024499,5]
[334539948,1723177841387,-500.0,0.00024499,5]
[334539949,1723177841399,-500.0,0.00024499,5]
[334539950,1723177841409,-500.0,0.00024499,5]
[334539951,1723177841421,-523.01118199,0.00024499,5]
[334539952,1723177841432,-1059.6,0.00024499,5]
[334539953,1723177841443,-1059.6,0.00024499,5]
[334539954,1723177841453,-1059.6,0.00024499,5]
[334539955,1723177841463,-1059.6,0.00024499,5]
[334539956,1723177841474,-1059.6,0.00024499,5]
[334539957,1723177841486,-1059.6,0.00024499,5]
[334539958,1723177841495,-1059.6,0.00024499,5]
[334539959,1723177841505,-1059.6,0.00024499,5]
[334539960,1723177841515,-1059.6,0.00024499,5]
[334539961,1723177841525,-1059.6,0.00024499,5]
[334539962,1723177841534,-1059.6,0.00024499,5]
[334539963,1723177841546,-1059.6,0.00024499,5]
[334539964,1723177841557,-1059.6,0.00024499,5]
[334539965,1723177841567,-1059.6,0.00024499,5]
[334539966,1723177841583,-1059.6,0.00024499,5]
[334539967,1723177841594,-1059.6,0.00024499,5]
[334539968,1723177841605,-872.4,0.00024499,5]
[334539969,1723177841618,-1059.6,0.00024499,5]
[334539970,1723177841628,-872.4,0.00024499,5]
[334539971,1723177841640,-1059.6,0.00024499,5]
[334539972,1723177841652,-872.4,0.00024499,5]
[334539973,1723177841664,-1059.6,0.00024499,5]
[334539974,1723177841675,-872.4,0.00024499,5]
[334539975,1723177841686,-1059.6,0.00024499,5]
[334539976,1723177841700,-872.4,0.00024499,5]
[334539977,1723177841712,-1059.61411496,0.00024499,5]
[334539978,1723177841724,-872.4,0.00024499,5]
[334539979,1723177841734,-872.4,0.00024499,5]
[334539980,1723177841746,-872.4,0.00024499,5]
[334539981,1723177841758,-872.4,0.00024499,5]
[334539982,1723177841768,-872.4,0.00024499,5]
[334539983,1723177841778,-872.4,0.00024499,5]
[334539984,1723177841788,-872.4,0.00024499,5]
[334539985,1723177841798,-872.4,0.00024499,5]
[334539986,1723177841808,-872.4,0.00024499,5]
[334539987,1723177841818,-872.4,0.00024499,5]
[334539988,1723177841827,-872.4,0.00024499,5]
[334539989,1723177841838,-500.0,0.00024499,5]
[334539990,1723177841849,-872.4,0.00024499,5]
[334539991,1723177841859,-500.0,0.00024499,5]
[334539992,1723177841870,-872.4,0.00024499,5]
[334539993,1723177841881,-500.0,0.00024499,5]
[334539994,1723177841891,-500.0,0.00024499,5]
[334539995,1723177841902,-872.4,0.00024499,5]
[334539996,1723177841912,-500.0,0.00024499,5]
[334539997,1723177841922,-872.4,0.00024499,5]
[334539998,1723177841932,-500.0,0.00024499,5]
[334539999,1723177841946,-872.4,0.00024499,5]
[334540000,1723177841960,-500.0,0.00024499,5]
[334540001,1723177841972,-500.0,0.00024499,5]
[334540002,1723177841983,-500.0,0.00024499,5]
[334540003,1723177841995,-500.0,0.00024499,5]
[334540004,1723177842006,-500.0,0.00024499,5]
[334540005,1723177842017,-500.0,0.00024499,5]
[334540006,1723177842029,-500.0,0.00024499,5]
[334540007,1723177842039,-500.0,0.00024499,5]
[334540008,1723177842049,-500.0,0.00024499,5]
[334540009,1723177842059,-500.0,0.00024499,5]
[334540010,1723177842070,-500.0,0.00024499,5]
[334540011,1723177842080,-332.78607932,0.00024499,5]
[334540012,1723177842090,-500.0,0.00024499,5]
[334540013,1723177842100,-500.0,0.00024499,5]
[334540014,1723177842111,-500.0,0.00024499,5]
[334540015,1723177842121,-500.0,0.00024499,5]
[334540016,1723177842131,-500.0,0.00024499,5]
[334540017,1723177842141,-500.0,0.00024499,5]
[334540018,1723177842151,-500.0,0.00024499,5]
[334540019,1723177842162,-500.0,0.00024499,5]
[334540020,1723177842172,-500.0,0.00024499,5]
[334540021,1723177842183,-500.0,0.00024499,5]
[334540022,1723177842195,-500.0,0.00024499,5]
[334540023,1723177842207,-500.0,0.00024499,5]
[334540024,1723177842220,-500.0,0.00024499,5]
[334540025,1723177842230,-500.0,0.00024499,5]
[334540026,1723177842241,-500.0,0.00024499,5]
[334540027,1723177842253,-500.0,0.00024499,5]
[334540028,1723177842264,-315.82798933,0.00024499,5]
[334540029,1723177842275,-500.0,0.00024499,5]
[334540030,1723177842286,-500.0,0.00024499,5]
[334540031,1723177842296,-500.0,0.00024499,5]
[334540032,1723177842306,-500.0,0.00024499,5]
[334540033,1723177842316,-500.0,0.00024499,5]
[334540034,1723177842328,-500.0,0.00024499,5]
[334540035,1723177842338,-500.0,0.00024499,5]
[334540036,1723177842348,-500.0,0.00024499,5]
[334540037,1723177842359,-500.0,0.00024499,5]
[334540038,1723177842369,-500.0,0.00024499,5]
[334540039,1723177842379,-500.0,0.00024499,5]
[334540040,1723177842390,-500.0,0.00024499,5]
[334540041,1723177842400,-405.49844493,0.00024499,5]
[334540042,1723177842411,-500.0,0.00024499,5]
[334540043,1723177842421,-500.0,0.00024499,5]
[334540044,1723177842431,-500.0,0.00024499,5]
[334540045,1723177842442,-500.0,0.00024499,5]
[334540046,1723177842453,-500.0,0.00024499,5]
[334540049,1723177842463,-500.0,0.00024499,5]
[334540051,1723177842473,-500.0,0.00024499,5]
[334540053,1723177842483,-500.0,0.00024499,5]
[334540055,1723177842493,-549.33086808,0.00024499,5]
[334540057,1723177842504,-658.5,0.00024499,5]
[334540059,1723177842514,-658.5,0.00024499,5]
[334540061,1723177842524,-658.5,0.00024499,5]
[334540063,1723177842535,-658.5,0.00024499,5]
[334540065,1723177842546,-658.5,0.00024499,5]
[334540067,1723177842557,-658.5,0.00024499,5]
[334540069,1723177842569,-658.5,0.00024499,5]
[334540071,1723177842582,-658.5,0.00024499,5]
[334540073,1723177842592,-658.5,0.00024499,5]
[334540075,1723177842602,-658.5,0.00024499,5]
[334540077,1723177842613,-658.5,0.00024499,5]
[334540079,1723177842623,-658.5,0.00024499,5]
[334540081,1723177842634,-658.5,0.00024499,5]
[334540083,1723177842644,-658.5,0.00024499,5]
[334540086,1723177842656,-658.5,0.00024499,5]
[334540088,1723177842666,-658.5,0.00024499,5]
[334540090,1723177842677,-658.5,0.00024499,5]
[334540092,1723177842687,-658.5,0.00024499,5]
[334540094,1723177842698,-658.5,0.00024499,5]
[334540096,1723177842708,-658.5,0.00024499,5]
[334540098,1723177842719,-658.54103599,0.00024499,5]
[334540100,1723177842729,-544.42,0.00024499,5]
[334540102,1723177842739,-544.42,0.00024499,5]
[334540104,1723177842749,-544.42,0.00024499,5]
[334540106,1723177842761,-544.42,0.00024499,5]
[334540108,1723177842771,-544.42,0.00024499,5]
[334540110,1723177842782,-544.42,0.00024499,5]
[334540112,1723177842793,-544.42,0.00024499,5]
[334540115,1723177842803,-544.42,0.00024499,5]
[334540118,1723177842814,-544.42,0.00024499,5]
[334540121,1723177842824,-544.42,0.00024499,5]
[334540125,1723177842834,-544.42,0.00024499,5]
[334540128,1723177842844,-544.42,0.00024499,5]
[334540130,1723177842855,-544.42,0.00024499,5]
[334540132,1723177842866,-544.42,0.00024499,5]
[334540134,1723177842876,-544.42,0.00024499,5]
[334540136,1723177842887,-544.42,0.00024499,5]
[334540139,1723177842897,-544.42,0.00024499,5]
[334540142,1723177842908,-544.42,0.00024499,5]